Workbook

Sheet 1
A1: Школа | B1: ГБОУ « Маскаринская школа- интернат для детей с ОВЗ» | E1: Отд./корп | F1: 12день | I1: Дата | J1: 30.01.26
A3: Прием пищи | B3: Раздел | C3: № рец. | D3: Блюдо | E3: Выход, г | F3: Цена | G3: Калорийность | H3: Белки | I3: Жиры | J3: Углеводы
A4: Завтрак | B4: гор.блюдо | C4: 23 | D4: Каша геркулес мол. | E4: 200 | F4: 22.38 | G4: 212 | H4: 9.7 | I4: 8.3 | J4: 36.8
B5: сыр | C5: 48 | D5: Сыр | E5: 24 | F5: 20 | G5: 67.4 | H5: 4.3 | I5: 5.4 | J5: 0
B6: гор.напиток | C6: 63 | D6: Чай сладкий | E6: 200 | F6: 1.93 | G6: 135 | H6: 0.1 | I6: 0 | J6: 9.9
B7: хлеб | C7: 37 | D7: Хлеб пшеничной | E7: 120 | F7: 7.92 | G7: 284.1 | H7: 3.1 | I7: 0.2 | J7: 20.1
B8: фрукты | C8: 61 | D8: Апельсин | E8: 100 | F8: 13.9 | G8: 36 | H8: 1.4 | I8: 0.3 | J8: 8.1
B9: масло слив. | C9: 50 | D9: Масло сливочное | E9: 10 | F9: 12.06 | G9: 105 | H9: 0.4 | I9: 62.5 | J9: 0.8
E11: =SUM(E4:E10) -> 654 | F11: =SUM(F4:F10) -> 78.19 | G11: =SUM(G4:G10) -> 839.5 | H11: =SUM(H4:H10) -> 19 | I11: =SUM(I4:I10) -> 76.7 | J11: =SUM(J4:J10) -> 75.7
A12: Завтрак 2 | B12: фрукты | C12: 62 | D12: Банан | E12: 100 | F12: 15.6 | G12: 96 | H12: 1.4 | I12: 0.3 | J12: 12.1
B13: напиток | C13: 53 | D13: Компот из с/ф | E13: 200 | F13: 2.95 | G13: 110 | H13: 4 | I13: 0.06 | J13: 35.2
B14: выпечка | C14: 41 | D14: Запеканка творожная | E14: 150/15 | F14: 83.44 | G14: 325 | H14: 20.44 | I14: 20 | J14: 29.6
B15: хлеб бел. | C15: 37 | D15: Хлеб пшеничный | E15: 120 | F15: 7.92 | G15: 284.1 | H15: 3.1 | I15: 0.2 | J15: 20.1
E18: =SUM(E12:E17) -> 420 | F18: =SUM(F12:F17) -> 109.91 | G18: =SUM(G12:G17) -> 815.1 | H18: =SUM(H12:H17) -> 28.94 | I18: =SUM(I12:I17) -> 20.56 | J18: =SUM(J12:J17) -> 97
A19: Обед | B19: закуска | C19: 35 | D19: салат морковный | E19: 100 | F19: 4.81 | G19: 98.8 | H19: 1.16 | I19: 8.3 | J19: 14.6
B20: 1 блюдо | C20: 1 | D20: Щи к/м со сметаной | E20: 250 | F20: 40 | G20: 194.9 | H20: 9.1 | I20: 10.5 | J20: 15.9
B21: 2 блюдо | C21: 22 | D21: Каша греч. Молочная | E21: 200 | F21: 22.3 | G21: 393.1 | H21: 12 | I21: 11.4 | J21: 59.1
B22: гарнир | C22: 25 | D22: Гуляш из говядины | E22: 100 | F22: 33.85 | G22: 132.4 | H22: 10 | I22: 15.3 | J22: 5.5
B23: напиток | C23: 57 | D23: Сок | E23: 200 | F23: 12.4 | G23: 94 | H23: 0.8 | I23: 0 | J23: 23
B24: хлеб бел.
B25: хлеб черн. | C25: 36 | D25: Дарницкий | E25: 80 | F25: 6.92 | G25: 164.8 | H25: 2.6 | I25: 0.4 | J25: 17
E28: =SUM(E19:E27) -> 930 | F28: =SUM(F19:F27) -> 120.28 | G28: =SUM(G19:G27) -> 1078 | H28: =SUM(H19:H27) -> 35.66 | I28: =SUM(I19:I27) -> 45.9 | J28: =SUM(J19:J27) -> 135.1
A29: Полдник | B29: булочное
B30: напиток
A34: Ужин | B34: гор.блюдо | C34: 21 | D34: Каша рис мол. | E34: 200 | F34: 25.56 | G34: 277.5 | H34: 5.8 | I34: 9.2 | J34: 42.6
B35: гарнир | C35: 72 | D35: Рыба запеченная | E35: 100 | F35: 104.73 | G35: 153 | H35: 13.7 | I35: 6.2 | J35: 4.4
B36: гор.напиток | C36: 52 | D36: Чай с молоком | E36: 200 | F36: 9.77 | G36: 30 | H36: 1.64 | I36: 1.64 | J36: 2.38
B37: хлеб | C37: 36 | D37: Хлеб"Дарницкий" | E37: 80 | F37: 6.92 | G37: 164.8 | H37: 2.6 | I37: 0.4 | J37: 17
B38: масло | C38: 50 | D38: Масло сливочное | E38: 10 | F38: 12.06 | G38: 105 | H38: 0.4 | I38: 62.5 | J38: 0.8
E40: =SUM(E34:E39) -> 590 | F40: =SUM(F34:F39) -> 159.04 | G40: =SUM(G34:G39) -> 730.3 | H40: =SUM(H34:H39) -> 24.14 | I40: =SUM(I34:I39) -> 79.94 | J40: =SUM(J34:J39) -> 67.18
A41: Ужин 2 | B41: кисломол. | C41: 58 | D41: Ряженка | E41: 200 | F41: 24.08 | G41: 134 | H41: 12 | I41: 2 | J41: 8.4
B42: фрукты | C42: 60 | D42: Яблоки св. | E42: 100 | F42: 6.8 | G42: 68.6 | H42: 0.6 | I42: 0.6 | J42: 14.3
B43: напиток
E47: =SUM(E41:E46) -> 300 | F47: =SUM(F41:F46) -> 30.88 | G47: =SUM(G41:G46) -> 202.6 | H47: =SUM(H41:H46) -> 12.6 | I47: =SUM(I41:I46) -> 2.6 | J47: =SUM(J41:J46) -> 22.7
